Cogmind - Beta 16 @@@ ROGUE MODE // 2026.01.05 @ 16:58:54 Player: Cart123 Result: Destroyed by G-34 Mercenary with Small Laser Performance ------------- Evolutions (1) 500 Regions Visited (2) 400 Robots Destroyed (20) 100 Value Destroyed (459) 459 Prototype IDs (0) 0 Alien Tech Used (0) 0 Bonus (0) 0 TOTAL SCORE: 1459 Bonus ------- None Cogmind --------- Core Integrity 0/400 Matter 266/300 Energy 52/100 System Corruption 0% Temperature Warm (173) Movement Core (400) Ox7 Location -9/Materials Parts ------- > --- POWER (2) -------- (None) > --- PROPULSION (2) --- (None) > --- UTILITY (3) ------ Large Storage Unit > --- WEAPON (2) ------- Medium Laser Small Laser > --- INVENTORY (15) --- Heat Sink Large Storage Unit Trap Scanner Terrain Scanner Light Armor Plating Peak State ------------ > --- POWER ------------ Ion Engine Ion Engine > --- PROPULSION ------- Titanium Leg Titanium Leg > --- UTILITY ---------- Large Storage Unit Compact Battery Targeting Computer > --- WEAPON ----------- Field Laser Heavy Assault Rifle > --- INVENTORY -------- Light Ion Engine Titanium Leg Heat Sink Large Storage Unit Trap Scanner Terrain Scanner Light Armor Plating Medium Laser Small Laser Beam Rifle Spread Laser Field Laser [Rating: 20] Favorites ----------- Power Ion Engine Engine Ion Engine Propulsion Light Treads Treads Light Treads Leg Titanium Leg Utility Large Storage Unit Device Terrain Scanner Storage Large Storage Unit Processor Visual Processing Unit Protection Light Armor Plating Weapon Light Cannon Energy Gun Medium Laser Ballistic Gun Shotgun Ballistic Cannon Light Cannon Build | -11 -10 -9 ------- Run | Yrd Mat Mat Slots Evolved 2 | . . 2 Power 1 | . . 1 Propulsion . | . . . Utility 1 | . . 1 Weapon . | . . . Parts Attached 28 | 6 4 18 Power 4 | 1 1 2 Engine 4 | 1 1 2 Core . | . . . Reactor . | . . . Propulsion 5 | 2 . 3 Treads 2 | 2 . . Leg 3 | . . 3 Wheel . | . . . Hover . | . . . Flight . | . . . Utility 8 | 1 1 6 Device 2 | . . 2 Storage 3 | 1 1 1 Processor 2 | . . 2 Hackware . | . . . Protection 1 | . . 1 Artifact . | . . . Weapon 11 | 2 2 7 Energy Gun 8 | 2 . 6 Energy Cannon . | . . . Ballistic Gun 2 | . 1 1 Ballistic Cannon 1 | . 1 . Launcher . | . . . Special Weapon . | . . . Impact Weapon . | . . . Slashing Weapon . | . . . Piercing Weapon . | . . . Special Melee Weapon . | . . . Unidentified Prototypes . | . . . Parts Lost 15 | . . 15 Power 4 | . . 4 Propulsion 3 | . . 3 Utility 3 | . . 3 Weapon 5 | . . 5 Highest Loss Streak 11 | . . 11 To Critical Strikes . | . . . Average Backups 8 | 2 5 11 Power 1 | 1 2 . Propulsion . | . . . Utility 3 | . 1 4 Weapon 3 | . 1 5 Tool/Special . | . . . Unused Backups 3 | . . 3 Power . | . . . Propulsion . | . . . Utility 3 | . . 3 Weapon . | . . . Tool/Special . | . . . Average Slot Usage (%) 93 | . 85 95 Engine 19 | . 14 20 Treads 13 | . 28 9 Leg 9 | . . 11 Device 6 | . . 8 Storage 14 | . 14 14 Processor 6 | . . 7 Energy Gun 7 | . 20 4 Ballistic Gun 6 | . . 7 Ballistic Cannon 8 | . 6 8 Peak Build Rating 20 | 6 8 20 Average Rating 11 | 5 6 14 On Entrance 4 | . 6 8 Avg Prop Armor Cover (%) . | . . . Naked Turns . | . . . Heaviest Build 40 | 13 29 40 Greatest Support 40 | 40 40 40 Greatest Overweight (x) 2 | . . 2 Average Overweight (x) . | . . . Largest Inventory Capacity 15 | 8 15 15 Average Capacity 13 | 7 13 15 Most Carried 15 | 4 10 15 Average Carried 8 | 2 5 11 Final Capacity 15 | 8 15 15 Final Carried 10 | 3 10 5 Class Distribution -------------------- 100% | Mutant Dominant Class ---------------- Mutant | -10/Materials Mutant | -9/Materials Resources | -11 -10 -9 ----------- Run | Yrd Mat Mat Matter Collected 502 | 250 43 209 Remotely . | . . . Salvage Created 548 | 87 119 342 Parts 35 | 4 8 23 Haulers Intercepted . | . . . Recyclers Shooed 1 | . 1 . Parts Field Recycled . | . . . Retrieved Matter . | . . . Parts Self-Destructed . | . . . Prevented . | . . . Parts Restored . | . . . Kills | -11 -10 -9 ------- Run | Yrd Mat Mat Combat Hostiles Destroyed 14 | . 3 11 Guns 8 | . 1 7 Cannons 5 | . 2 3 AOE 1 | . . 1 Classes Destroyed 9 | 3 2 4 Worker 2 | 1 . 1 Builder 1 | . . 1 Tunneler 1 | 1 . . Recycler 1 | 1 . . Watcher 1 | . 1 . Swarmer 4 | . . 4 Grunt 8 | . 3 5 Brawler 1 | . . 1 Sentry 1 | . . 1 Best Kill Streak 5 | 1 2 5 Combat Bots Only 4 | . 2 4 Max Kills in Single Turn 2 | 1 1 2 Gunslinging . | . . . Exploded 1 | . . 1 Melee . | . . . Uniques/NPCs Destroyed . | . . . Combat | -11 -10 -9 -------- Run | Yrd Mat Mat Hostile Shots Fired 239 | . 15 224 Missed 74 | . 6 68 Hits 165 | . 9 156 Melee 13 | . . 13 Projectile 152 | . 9 143 Critical Strikes 7 | . . 7 Damage Taken 1917 | . 101 1816 Core 431 | . 22 409 Absorbed by Shields 124 | . . 124 Core Remaining (%) 95 | 100 91 . Volleys Fired 52 | 5 10 37 Largest 2 | 2 2 2 Hottest 128 | 90 90 128 Shots Fired 95 | 10 20 65 Gun 68 | 10 11 47 Cannon 27 | . 9 18 Launcher . | . . . Special . | . . . Kinetic 35 | . 11 24 Thermal 47 | 10 9 28 Explosive . | . . . Electromagnetic 13 | . . 13 Robot Hit Streak 11 | 2 10 11 Robot Miss Streak 5 | 2 5 5 Penetration Max . | . . . Secondary Targets 1 | . . 1 Max Gunslinging Chain 1 | . . 1 Shots Hit Robots 55 | 5 11 39 Core Hits 38 | 4 5 29 Critical Kills . | . . . Critical Parts Destroyed . | . . . Critical Strikes 5 | 2 1 2 Burn 3 | 2 . 1 Blast 2 | . 1 1 Melee Attacks . | . . . Impact . | . . . Slashing . | . . . Piercing . | . . . Sneak Attacks . | . . . Combat Hostiles . | . . . Follow-up Attacks . | . . . Damage Inflicted 1043 | 79 191 773 Guns 629 | 62 87 480 Cannons 259 | . 104 155 Explosions 101 | . . 101 Melee . | . . . Ramming 54 | 17 . 37 Kinetic 345 | . 143 202 Thermal 504 | 62 48 394 Explosive . | . . . Electromagnetic 140 | . . 140 Impact . | . . . Slashing . | . . . Piercing . | . . . Highest Corruption . | . . . Average Corruption . | . . . Corruption Purged . | . . . Corruption Blocked . | . . . Overload Shots . | . . . Overflow Damage . | . . . Projectiles . | . . . Explosions . | . . . Melee . | . . . Knockbacks 4 | . 2 2 Impact . | . . . Kinetic 4 | . 2 2 Secondary . | . . . Self-Inflicted Damage . | . . . Shots . | . . . Rammed 4 | 3 . 1 Targets Rammed 19 | 4 . 15 Kicked 14 | . . 14 Crushed 1 | 1 . . Highest Temperature 448 | 90 108 448 Average Temperature 101 | 36 40 124 Received Heat Transfer 586 | . 54 532 Effects 2 | . . 2 Shutdowns 1 | . . 1 Interference 1 | . . 1 Siege Activations . | . . . Martial Activations . | . . . Shielding Activations . | . . . Robots Disrupted . | . . . Combat Hostiles . | . . . Robots Corrupted . | . . . Combat Hostiles . | . . . Parts Fried . | . . . Impact Corruptions . | . . . Robots Melted . | . . . Combat Hostiles . | . . . Parts Melted 3 | . 1 2 Heat Transferred 1301 | 321 148 832 Parts Sabotaged . | . . . Parts Stolen . | . . . Parts Stripped . | . . . Power Chain Reactions 2 | . . 2 Alert | -11 -10 -9 ------- Run | Yrd Mat Mat Maximum Alert Level . | . . . Low Security (%) 100 | 100 100 100 Level 1 . | . . . Level 2 . | . . . Level 3 . | . . . Level 4 . | . . . Level 5 . | . . . High Security . | . . . Max Security . | . . . Peak Influence 193 | 5 62 193 Initial 26 | . . 26 Average 26 | 1 5 39 Influence Increases 431 | 15 102 314 Destroy 0b10 Robot/C 280 | . 60 220 Destroy 0b10 Robot/NC 30 | 15 5 10 Destroy Leader 62 | . 22 40 Successful Hack 5 | . . 5 Disable Machine 45 | . 15 30 Destroy Structure 9 | . . 9 Influence Decreases 382 | 15 40 327 Entered New Map 36 | . . 36 Time Decay 196 | 15 40 141 Lost Part 150 | . . 150 Squads Dispatched 3 | . 2 1 Investigation 2 | . 2 . Extermination . | . . . Reinforcement 1 | . . 1 Assault . | . . . Garrison . | . . . Intercept . | . . . Searches Triggered . | . . . Construction Impeded . | . . . Haulers Reinforced . | . . . Active Scanning Responses . | . . . Cargo Convoy Interrupts . | . . . Stealth | -11 -10 -9 --------- Run | Yrd Mat Mat Distress Signals . | . . . Communications Jammed . | . . . Distress Signals . | . . . Times Spotted 25 | . 6 19 Peak Tracking Total 7 | . 4 7 Tactical Retreats . | . . . Traps | -11 -10 -9 ------- Run | Yrd Mat Mat Traps Triggered 1 | . 1 . Indirectly . | . . . Trap Hack Attempts . | . . . Triggered . | . . . Disarmed . | . . . Reprogrammed . | . . . Reused . | . . . Traps Extracted . | . . . Installed . | . . . Triggered . | . . . Machines | -11 -10 -9 ---------- Run | Yrd Mat Mat Machines Disabled 3 | . 1 2 Max in Single Turn 1 | . 1 1 Machines Repaired . | . . . Machines Dismantled . | . . . Machines Sabotaged . | . . . Overloaded Fab Kills . | . . . Hacking | -11 -10 -9 --------- Run | Yrd Mat Mat Machines Accessed 2 | . 1 1 Terminals 2 | . 1 1 Fabricators . | . . . Repair Stations . | . . . Recycling Units . | . . . Scanalyzers . | . . . Garrison Access . | . . . Total Hacks 9 | . 4 5 Successful 3 | . 1 2 Failed 6 | . 3 3 Catastrophic 1 | . . 1 Database Lockouts . | . . . Manual . | . . . Terminals 9 | . 4 5 Fabricators . | . . . Repair Stations . | . . . Recycling Units . | . . . Scanalyzers . | . . . Garrison Access . | . . . Terminal Hacks 3 | . 1 2 Record 1 | . . 1 Transport Status 1 | . 1 . Hauler Manifests 1 | . . 1 Fabricator Hacks . | . . . Repair Station Hacks . | . . . Recycling Unit Hacks . | . . . Scanalyzer . | . . . Garrison Access Hacks . | . . . Unauthorized Hacks . | . . . Terminals . | . . . Fabricators . | . . . Repair Stations . | . . . Recycling Units . | . . . Scanalyzers . | . . . Garrison Access . | . . . Data Cores Recovered . | . . . Used . | . . . Hacking Detections 2 | . 1 1 Full Trace Events 2 | . 1 1 Feedback Events . | . . . Feedback Blocked . | . . . Robot Schematics Acquired . | . . . Robots Built . | . . . Authchips . | . . . Time . | . . . Total Robot Build Rating . | . . . Part Schematics Acquired . | . . . Parts Built . | . . . Authchips . | . . . Time . | . . . Total Part Build Rating . | . . . Part Studies Acquired . | . . . Parts Repaired . | . . . Time . | . . . Parts Recycled . | . . . Recycled Matter . | . . . Retrieved Matter . | . . . Retrieved Components . | . . . Parts Scanalyzed . | . . . Part Schematics Acquired . | . . . Parts Damaged . | . . . Bothacking | -11 -10 -9 ------------ Run | Yrd Mat Mat Used RIF Installer . | . . . Robots Hacked . | . . . Non-combat . | . . . Combat . | . . . Robot Hacks Applied . | . . . Relay Couplers Released . | . . . Fabnet Peak Effective % . | . . . Robots Rewired . | . . . Allies Hacked . | . . . Hacks Repelled . | . . . Allies | -11 -10 -9 -------- Run | Yrd Mat Mat Total Allies . | . . . Largest Group . | . . . Highest-Rated Group . | . . . Highest-Rated Ally . | . . . Total Orders . | . . . Ally Attacks . | . . . Total Damage . | . . . Kills . | . . . Allies Corrupted . | . . . Allies Melted . | . . . Intel | -11 -10 -9 ------- Run | Yrd Mat Mat Active Infowar (turns) 357 | . . 357 Optics 357 | . . 357 Terrain 349 | . . 349 Robot Analysis Total . | . . . Derelict Logs Recovered . | . . . Drone Launches . | . . . Drone Recoveries . | . . . Exploration | -11 -10 -9 ------------- Run | Yrd Mat Mat Turns Passed 1232 | 219 209 804 Spaces Moved 505 | 124 93 288 Core 13 | 13 . . Treads 348 | 111 93 144 Legs 144 | . . 144 Wheels . | . . . Hover . | . . . Flight . | . . . Fastest Speed 50 | 50 160 130 Average Speed 169 | 148 160 180 Slowest Speed 270 | 160 160 270 Overloaded Moves . | . . . Propulsion Burnouts . | . . . Robots Hopped . | . . . Potential Cave-ins . | . . . Cave-ins Triggered . | . . . Exploration Rate (%) 17 | 6 19 26 Regions Visited 2 Branch Regions . Pre-discovered Areas . | . . . Known Exits Taken . | . . . Unknown Exits Taken 2 | 1 1 . Scrap Searched . | . . . Spaces Dug . | . . . Terrain Destroyed 9 | . . 9 Melee . | . . . Projectile . | . . . AOE 9 | . . 9 Terrain Rammed . | . . . Walls Destroyed . | . . . Machines Disabled . | . . . Actions | -11 -10 -9 --------- Run | Yrd Mat Mat Total 772 | 147 133 492 Wait 126 | . 16 110 Move 503 | 123 92 288 Hop . | . . . Pick Up 32 | 9 8 15 Fast Attach . | . . . Attach 27 | 6 2 19 Detach 2 | . 1 1 Swap 6 | . 3 3 Drop 5 | . 1 4 Fire 52 | 5 10 37 Melee . | . . . Ram 1 | . . 1 Kick 14 | . . 14 Crush 4 | 4 . . Escape Stasis . | . . . Rewire . | . . . Trap . | . . . Miscellaneous . | . . . Route ------- -11/Scrapyard -10/Materials -9/Materials History --------- Turn | Location | Event 3 | -11/Scrapyard | Discovered new exit (range 15) 220 | -11/Scrapyard | Entered Materials 221 | -10/Materials | Met a group of wandering Federalists 318 | -10/Materials | Build established: Mutant 355 | -10/Materials | Discovered new exit (range 15) 429 | -10/Materials | Entered another Materials area 429 | -9/Materials | Evolved 2 slots: Power x1, Utility x1 1111 | -9/Materials | Lost 4 parts (1p1u2w) 1191 | -9/Materials | Core integrity fell below 50% 1221 | -9/Materials | Core integrity fell below 20% 1233 | -9/Materials | Destroyed by G-34 Mercenary with Small Laser Last Messages --------------- Titanium Leg destroyed. Slammed into L-31 Rogue. Hvy. Assault Rifle destroyed. Field Laser severed. Critical hit (Burn: +37). Acquired 2 matter. Spread Laser severed. Field Laser severed. Ion Engine destroyed. Beam Rifle destroyed. Kicked L-31 Rogue. Targeting Computer destroyed. Kicked L-31 Rogue out of the way. Kicked L-31 Rogue. L-31 Rogue destroyed. Acquired Field Laser. Lgt. Ion Engine destroyed. Titanium Leg destroyed. Field Laser destroyed. G-34 Mercenary destroyed. Map ----- +----------------------------------------------------+ | | | | | ????????????????????????????????????????????? | | ????????????????????????????????????????????? | | ????????????????????????????????????????????? | | ????????????????????????????????????????????? | | ????????????????????????????????????????????? | | ????????????????????????????????????????????? | | ????????????????????????????????????????????? | | ????????????????????????????????????????????? | | ????????????????????????????????????????????? | | ????????????????????????????????????????????? | | ????????????????????????????????????????????? | | ????????????????????????????????????????????? | | ????????????????????????????????????????????? | | ????????????????????????????????????????????? | | ????????????????????????????????????????????? | | ????????????????????????????????????????????? | | ????????????????????????????????????????????? | | ????????????????????????????????????????????? | | ????????????????????????????????????????????? | | ????????#######????###########??????????????? | | ??????! #????# #??????????????? | | ?????# """"" #????# #??????????????? | | ?????# """"" ###### % =! #??????????????? | | ?????# """"" ## # @=! #??????????????? | | ?????# # ## [[! #??????????????? | | ?????# """"" # # #??????????????? | | ?????# """""=# # * gg #??????????????? | | ?????# """"==# # [%g #??????????????? | | ?????# = # ####/######??????????????? | | ##########+###### ### ###???????????????? | | #??????????? | | #??????????? | | #??????????? | | ###/######/###### ### #### #??????????? | | # ## #?#######???? #??????????? | | "%|# ## #????????????? #??????????? | | " "%+ ## #?????????????????????????? | | " #! ## #?????????????????????????? | | " %=#= ## #?????????????????????????? | | " [%# ## #?????????????????????????? | | " !# #? ??????????????????????????? | | # #? ??????????????????????????? | | """ ###########? ??????????????????????????? | | %%" #??????????? ??????????????????????????? | | #??????????? ??????????????????????????? | | ##+###??????????? ??????????????????????????? | | ?# #????????????????????????????????????????? | | ?# ##???????????????????????????????????????? | +----------------------------------------------------+ Best States ------------- Heat Dissipation 28 Energy Generation 15 Energy Capacity 600 Matter Stores 300 Matter Capacity 300 Sight Range 18 Terrain Scan Range 14 Terrain Scan Density 10 Armor Coverage 150 Evasion (%) 50 Targeting Accuracy 5 Recoil Reduction 2 Item Schematics ----------------- None Robot Schematics ------------------ None Fabricated ------------ Nothing Repaired ---------- Nothing Studied --------- None Alien Tech Used ----------------- None Achievements -------------- Shopping List Challenges ------------ None Game ------ Seed DecoyFrostFacilitator Manual? 0 Play Time 00:18:38 Cumulative 4.1 hours Start 2026.01.05 @ 16:40:52 End 2026.01.05 @ 16:58:54 Sessions 1 Manual Loads 0 Difficulty Rogue Special Mode None Game No. 9 Rogue 9 Adventurer 0 Explorer 0 Win Type - Total 0 Types 0/0/0/0/0/0/0/0/0/0 Lore% 0 Gallery% 7 Achievement% 6 Wizard Run 0 Options --------- Layout 1 ASCII 0 Keyboard 0 Movement Mouse Keybinds 0 Fullscreen 2 Font 24/Smallcaps Map View 50x35 Zoom Use 0% Tactical HUD 0 Map Filters NONE Filters NONE Steam 1 RUN: 4ef0b538-4092-4e49-93a7-3680b9facca1